[Event "Titled Tuesday Blitz February 21 Early 2023"]
[White "Fiorito, Joaquin"]
[Black "Ter-Sahakyan, Samvel"]
[WhiteFideId "180173"]
[BlackFideId "13302531"]
[WhiteElo "2405"]
[BlackElo "2617"]
[Result "0-1"]
[Round "06"]
[TimeControl "180+2"]
[Date "2023.02.21"]
[WhiteClock "0:00:03"]
[BlackClock "0:00:37"]

1. d4 {[%clk 0:03:00]}  Nf6 {[%clk 0:02:59]} 2. Nc3 {[%clk 0:03:01]}  d5 {[%clk 0:02:58]} 3. Bf4 {[%clk 0:03:01]}  c5 {[%clk 0:02:58]} 4. e4 {[%clk 0:02:59]}  Nxe4 {[%clk 0:02:58]} 5. Bb5+ {[%clk 0:02:59]}  Nc6 {[%clk 0:02:47]} 6. Nxe4 {[%clk 0:02:59]}  dxe4 {[%clk 0:02:46]} 7. Ne2 {[%clk 0:03:00]}  e6 {[%clk 0:02:13]} 8. dxc5 {[%clk 0:02:10]}  Qxd1+ {[%clk 0:02:06]} 9. Rxd1 {[%clk 0:02:10]}  Bxc5 {[%clk 0:02:06]} 10. Bxc6+ {[%clk 0:01:48]}  bxc6 {[%clk 0:02:06]} 11. Nc3 {[%clk 0:01:46]}  f5 {[%clk 0:02:03]} 12. Na4 {[%clk 0:01:32]}  Be7 {[%clk 0:02:00]} 13. Bd6 {[%clk 0:01:25]}  Bxd6 {[%clk 0:02:00]} 14. Rxd6 {[%clk 0:01:25]}  Ke7 {[%clk 0:02:00]} 15. Rxc6 {[%clk 0:01:20]}  Bd7 {[%clk 0:02:00]} 16. Rc4 {[%clk 0:01:12]}  Rab8 {[%clk 0:01:25]} 17. b3 {[%clk 0:01:05]}  Rhc8 {[%clk 0:01:24]} 18. Nc5 {[%clk 0:00:49]}  Bb5 {[%clk 0:00:57]} 19. Rc3 {[%clk 0:00:48]}  Kd6 {[%clk 0:00:56]} 20. b4 {[%clk 0:00:48]}  a5 {[%clk 0:00:55]} 21. a3 {[%clk 0:00:47]}  axb4 {[%clk 0:00:54]} 22. axb4 {[%clk 0:00:47]}  Bc6 {[%clk 0:00:47]} 23. Rb3 {[%clk 0:00:20]}  Bd5 {[%clk 0:00:48]} 24. Rb2 {[%clk 0:00:20]}  Ke7 {[%clk 0:00:48]} 25. Na4 {[%clk 0:00:09]}  Rc4 {[%clk 0:00:40]} 26. c3 {[%clk 0:00:09]}  Ra8 {[%clk 0:00:40]} 27. Ra2 {[%clk 0:00:04]}  Bc6 {[%clk 0:00:38]} 28. Nb6 {[%clk 0:00:03]}  Rxa2 {[%clk 0:00:37]} 0-1


[Site "https://www.chess.com"]

[Event "Titled Tuesday Blitz February 21 Early 2023"]
[White "Paravyan, David"]
[Black "Maltsevskaya, Aleksandra"]
[WhiteFideId "4194985"]
[BlackFideId "24174041"]
[WhiteElo "2601"]
[BlackElo "2390"]
[Result "1-0"]
[Round "06"]
[TimeControl "180+2"]
[Date "2023.02.21"]
[WhiteClock "0:00:31"]
[BlackClock "0:00:01"]

1. e4 {[%clk 0:03:00]}  c5 {[%clk 0:02:58]} 2. Nf3 {[%clk 0:03:00]}  e6 {[%clk 0:02:57]} 3. d4 {[%clk 0:03:00]}  cxd4 {[%clk 0:02:57]} 4. Nxd4 {[%clk 0:03:01]}  Nf6 {[%clk 0:02:56]} 5. Bd3 {[%clk 0:02:57]}  Nc6 {[%clk 0:02:53]} 6. Nxc6 {[%clk 0:02:57]}  bxc6 {[%clk 0:02:53]} 7. Bf4 {[%clk 0:02:56]}  d5 {[%clk 0:02:52]} 8. Nd2 {[%clk 0:02:54]}  Bc5 {[%clk 0:02:45]} 9. O-O {[%clk 0:02:53]}  O-O {[%clk 0:02:44]} 10. e5 {[%clk 0:02:51]}  Nd7 {[%clk 0:02:44]} 11. Qh5 {[%clk 0:02:51]}  g6 {[%clk 0:02:44]} 12. Qh6 {[%clk 0:02:49]}  f5 {[%clk 0:02:22]} 13. Nf3 {[%clk 0:02:21]}  a5 {[%clk 0:02:11]} 14. Rac1 {[%clk 0:01:54]}  a4 {[%clk 0:02:01]} 15. c3 {[%clk 0:01:36]}  Ba6 {[%clk 0:01:55]} 16. Bxa6 {[%clk 0:01:35]}  Rxa6 {[%clk 0:01:56]} 17. c4 {[%clk 0:01:24]}  Qe7 {[%clk 0:01:28]} 18. Bg5 {[%clk 0:01:19]}  Qg7 {[%clk 0:01:10]} 19. Qh3 {[%clk 0:01:15]}  Be7 {[%clk 0:01:06]} 20. Bh6 {[%clk 0:01:14]}  Qf7 {[%clk 0:01:03]} 21. Bxf8 {[%clk 0:01:15]}  Qxf8 {[%clk 0:01:02]} 22. cxd5 {[%clk 0:01:15]}  cxd5 {[%clk 0:00:56]} 23. Rc7 {[%clk 0:01:14]}  Nc5 {[%clk 0:00:50]} 24. Rc1 {[%clk 0:00:58]}  Rb6 {[%clk 0:00:42]} 25. Ng5 {[%clk 0:00:50]}  h6 {[%clk 0:00:32]} 26. Rxe7 {[%clk 0:00:47]}  Qxe7 {[%clk 0:00:29]} 27. Qxh6 {[%clk 0:00:46]}  Rxb2 {[%clk 0:00:09]} 28. Qxg6+ {[%clk 0:00:45]}  Qg7 {[%clk 0:00:09]} 29. Qe8+ {[%clk 0:00:44]}  Qf8 {[%clk 0:00:10]} 30. Qh5 {[%clk 0:00:34]}  Qe7 {[%clk 0:00:02]} 31. h4 {[%clk 0:00:32]}  Nd7 {[%clk 0:00:01]} 32. Rc8+ {[%clk 0:00:31]} 1-0


[Site "https://www.chess.com"]

[Event "Titled Tuesday Blitz February 21 Early 2023"]
[White "Starozhilov, Leonid"]
[Black "Navara, David"]
[WhiteFideId "14106752"]
[BlackFideId "309095"]
[WhiteElo "2313"]
[BlackElo "2678"]
[Result "0-1"]
[Round "06"]
[TimeControl "180+2"]
[Date "2023.02.21"]
[WhiteClock "0:00:11"]
[BlackClock "0:00:05"]

1. e4 {[%clk 0:03:00]}  c6 {[%clk 0:03:00]} 2. d3 {[%clk 0:02:58]}  d5 {[%clk 0:03:01]} 3. Nf3 {[%clk 0:02:58]}  g6 {[%clk 0:02:58]} 4. Nbd2 {[%clk 0:02:54]}  Bg7 {[%clk 0:02:58]} 5. c3 {[%clk 0:02:51]}  e5 {[%clk 0:02:57]} 6. d4 {[%clk 0:02:44]}  exd4 {[%clk 0:02:40]} 7. cxd4 {[%clk 0:02:39]}  dxe4 {[%clk 0:02:39]} 8. Nxe4 {[%clk 0:02:40]}  Nf6 {[%clk 0:02:39]} 9. Nxf6+ {[%clk 0:02:21]}  Qxf6 {[%clk 0:02:40]} 10. Be2 {[%clk 0:02:13]}  O-O {[%clk 0:02:39]} 11. O-O {[%clk 0:02:13]}  Bg4 {[%clk 0:02:21]} 12. Qb3 {[%clk 0:02:05]}  Qe7 {[%clk 0:02:17]} 13. Bc4 {[%clk 0:01:44]}  b5 {[%clk 0:02:16]} 14. Bd3 {[%clk 0:01:32]}  Bxf3 {[%clk 0:02:16]} 15. gxf3 {[%clk 0:01:33]}  Bxd4 {[%clk 0:02:13]} 16. Bf4 {[%clk 0:01:30]}  Qf6 {[%clk 0:02:05]} 17. Bh6 {[%clk 0:01:02]}  Re8 {[%clk 0:01:33]} 18. Be4 {[%clk 0:00:57]}  g5 {[%clk 0:01:11]} 19. Qd3 {[%clk 0:00:57]}  Be5 {[%clk 0:01:04]} 20. Bxg5 {[%clk 0:00:38]}  Qxg5+ {[%clk 0:01:05]} 21. Kh1 {[%clk 0:00:38]}  Kh8 {[%clk 0:00:59]} 22. Rg1 {[%clk 0:00:39]}  Qh6 {[%clk 0:00:50]} 23. Rg2 {[%clk 0:00:39]}  Na6 {[%clk 0:00:50]} 24. Qd7 {[%clk 0:00:34]}  Rg8 {[%clk 0:00:31]} 25. Rag1 {[%clk 0:00:23]}  Rxg2 {[%clk 0:00:09]} 26. Rxg2 {[%clk 0:00:24]}  Nc5 {[%clk 0:00:06]} 27. Qxf7 {[%clk 0:00:25]}  Nxe4 {[%clk 0:00:05]} 28. fxe4 {[%clk 0:00:26]}  Rd8 {[%clk 0:00:05]} 29. Qb3 {[%clk 0:00:20]}  Qc1+ {[%clk 0:00:03]} 30. Rg1 {[%clk 0:00:20]}  Qf4 {[%clk 0:00:04]} 31. Rg2 {[%clk 0:00:18]}  Qxe4 {[%clk 0:00:04]} 32. h3 {[%clk 0:00:13]}  Qf5 {[%clk 0:00:03]} 33. Kg1 {[%clk 0:00:10]}  Qh5 {[%clk 0:00:02]} 34. Rg4 {[%clk 0:00:09]}  Qf5 {[%clk 0:00:02]} 35. Kg2 {[%clk 0:00:09]}  a5 {[%clk 0:00:03]} 36. Qe3 {[%clk 0:00:07]}  Bg7 {[%clk 0:00:03]} 37. Rg5 {[%clk 0:00:06]}  Qf6 {[%clk 0:00:02]} 38. Rg4 {[%clk 0:00:06]}  Qe5 {[%clk 0:00:02]} 39. Qf3 {[%clk 0:00:04]}  Qd5 {[%clk 0:00:03]} 40. Re4 {[%clk 0:00:04]}  Rf8 {[%clk 0:00:03]} 41. Qe3 {[%clk 0:00:04]}  Re8 {[%clk 0:00:03]} 42. f3 {[%clk 0:00:04]}  Rxe4 {[%clk 0:00:03]} 43. fxe4 {[%clk 0:00:05]}  Qd4 {[%clk 0:00:03]} 44. Qf3 {[%clk 0:00:05]}  Qxb2+ {[%clk 0:00:03]} 45. Kh1 {[%clk 0:00:06]}  Qa1+ {[%clk 0:00:03]} 46. Kg2 {[%clk 0:00:07]}  Qb2+ {[%clk 0:00:04]} 47. Kf1 {[%clk 0:00:08]}  Qb1+ {[%clk 0:00:04]} 48. Kg2 {[%clk 0:00:08]}  Qxa2+ {[%clk 0:00:04]} 49. Kf1 {[%clk 0:00:09]}  Qc4+ {[%clk 0:00:04]} 50. Kg2 {[%clk 0:00:09]}  Qc2+ {[%clk 0:00:04]} 51. Kf1 {[%clk 0:00:09]}  Qc1+ {[%clk 0:00:04]} 52. Kg2 {[%clk 0:00:10]}  Qd2+ {[%clk 0:00:04]} 53. Kf1 {[%clk 0:00:10]}  Qd8 {[%clk 0:00:04]} 54. Qg4 {[%clk 0:00:09]}  Qf8+ {[%clk 0:00:04]} 55. Ke2 {[%clk 0:00:10]}  a4 {[%clk 0:00:04]} 56. Qe6 {[%clk 0:00:10]}  a3 {[%clk 0:00:04]} 57. Qxc6 {[%clk 0:00:11]}  a2 {[%clk 0:00:04]} 58. Qxb5 {[%clk 0:00:11]}  a1=Q {[%clk 0:00:05]} 0-1


[Site "https://www.chess.com"]

[Event "Titled Tuesday Blitz February 21 Early 2023"]
[White "Bharath Subramaniyam H"]
[Black "Tan, Jun Ying"]
[WhiteFideId "46634827"]
[BlackFideId "5710413"]
[WhiteElo "2517"]
[BlackElo "2307"]
[Result "1-0"]
[Round "06"]
[TimeControl "180+2"]
[Date "2023.02.21"]
[WhiteClock "0:01:42"]
[BlackClock "0:00:09"]

1. c4 {[%clk 0:02:59]}  c6 {[%clk 0:02:59]} 2. d4 {[%clk 0:02:58]}  d5 {[%clk 0:03:00]} 3. cxd5 {[%clk 0:02:59]}  cxd5 {[%clk 0:02:59]} 4. Nf3 {[%clk 0:03:00]}  Nc6 {[%clk 0:02:58]} 5. Nc3 {[%clk 0:03:00]}  Nf6 {[%clk 0:02:58]} 6. Bf4 {[%clk 0:03:01]}  a6 {[%clk 0:02:58]} 7. e3 {[%clk 0:03:00]}  e6 {[%clk 0:02:52]} 8. Bd3 {[%clk 0:02:59]}  Bd6 {[%clk 0:02:52]} 9. Bg3 {[%clk 0:02:56]}  O-O {[%clk 0:02:52]} 10. Rc1 {[%clk 0:02:55]}  Qe7 {[%clk 0:02:47]} 11. O-O {[%clk 0:02:54]}  Bxg3 {[%clk 0:02:46]} 12. hxg3 {[%clk 0:02:54]}  Bd7 {[%clk 0:02:47]} 13. Bb1 {[%clk 0:02:51]}  Rfc8 {[%clk 0:02:43]} 14. Na4 {[%clk 0:02:51]}  Nb4 {[%clk 0:02:33]} 15. Nb6 {[%clk 0:02:50]}  Rxc1 {[%clk 0:02:29]} 16. Qxc1 {[%clk 0:02:51]}  Re8 {[%clk 0:01:54]} 17. a3 {[%clk 0:02:33]}  Nc6 {[%clk 0:01:51]} 18. Qc5 {[%clk 0:02:29]}  Qxc5 {[%clk 0:01:44]} 19. dxc5 {[%clk 0:02:30]}  e5 {[%clk 0:01:27]} 20. Rd1 {[%clk 0:02:22]}  Be6 {[%clk 0:01:27]} 21. b4 {[%clk 0:02:17]}  Rd8 {[%clk 0:01:24]} 22. Ng5 {[%clk 0:02:08]}  h6 {[%clk 0:01:13]} 23. Nxe6 {[%clk 0:02:06]}  fxe6 {[%clk 0:01:14]} 24. e4 {[%clk 0:02:01]}  Nxe4 {[%clk 0:00:53]} 25. Bxe4 {[%clk 0:01:59]}  dxe4 {[%clk 0:00:54]} 26. Rxd8+ {[%clk 0:01:54]}  Nxd8 {[%clk 0:00:55]} 27. Nc4 {[%clk 0:01:52]}  Nf7 {[%clk 0:00:47]} 28. Kf1 {[%clk 0:01:49]}  Kf8 {[%clk 0:00:44]} 29. Ke2 {[%clk 0:01:49]}  Ke7 {[%clk 0:00:41]} 30. Ke3 {[%clk 0:01:50]}  Ng5 {[%clk 0:00:24]} 31. Nxe5 {[%clk 0:01:47]}  Kf6 {[%clk 0:00:22]} 32. Nc4 {[%clk 0:01:47]}  e5 {[%clk 0:00:12]} 33. Na5 {[%clk 0:01:46]}  Kf5 {[%clk 0:00:11]} 34. Nxb7 {[%clk 0:01:46]}  Nf7 {[%clk 0:00:09]} 35. Nd6+ {[%clk 0:01:42]} 1-0


[Site "https://www.chess.com"]

[Event "Titled Tuesday Blitz February 21 Early 2023"]
[White "Madaminov, Mukhiddin"]
[Black "Aldokhin, Ivan"]
[WhiteFideId "14210703"]
[BlackFideId "24115720"]
[WhiteElo "2422"]
[BlackElo "2413"]
[Result "1-0"]
[Round "06"]
[TimeControl "180+2"]
[Date "2023.02.21"]
[WhiteClock "0:02:10"]
[BlackClock "0:00:25"]

1. d4 {[%clk 0:03:00]}  Nf6 {[%clk 0:02:59]} 2. Nc3 {[%clk 0:03:01]}  d5 {[%clk 0:02:59]} 3. Bf4 {[%clk 0:03:01]}  c6 {[%clk 0:02:48]} 4. e3 {[%clk 0:03:01]}  Bf5 {[%clk 0:02:48]} 5. f3 {[%clk 0:03:01]}  e6 {[%clk 0:02:47]} 6. g4 {[%clk 0:03:02]}  Bg6 {[%clk 0:02:45]} 7. h4 {[%clk 0:03:02]}  h5 {[%clk 0:02:36]} 8. g5 {[%clk 0:03:03]}  Ng8 {[%clk 0:02:33]} 9. Bd3 {[%clk 0:03:03]}  Ne7 {[%clk 0:02:28]} 10. e4 {[%clk 0:02:59]}  dxe4 {[%clk 0:02:21]} 11. fxe4 {[%clk 0:02:57]}  Qxd4 {[%clk 0:02:11]} 12. Nb5 {[%clk 0:02:57]}  cxb5 {[%clk 0:01:30]} 13. Bxb5+ {[%clk 0:02:55]}  Qd7 {[%clk 0:01:30]} 14. Bxd7+ {[%clk 0:02:52]}  Nxd7 {[%clk 0:01:31]} 15. Qe2 {[%clk 0:02:48]}  Nc6 {[%clk 0:01:28]} 16. O-O-O {[%clk 0:02:47]}  O-O-O {[%clk 0:01:24]} 17. Nf3 {[%clk 0:02:47]}  Be7 {[%clk 0:01:18]} 18. Rd3 {[%clk 0:02:42]}  Nc5 {[%clk 0:01:18]} 19. Rc3 {[%clk 0:02:29]}  Bxe4 {[%clk 0:01:11]} 20. Re1 {[%clk 0:02:26]}  Rd5 {[%clk 0:00:50]} 21. Rxc5 {[%clk 0:02:24]}  Bxf3 {[%clk 0:00:49]} 22. Rxc6+ {[%clk 0:02:24]}  bxc6 {[%clk 0:00:46]} 23. Qxf3 {[%clk 0:02:25]}  Rhd8 {[%clk 0:00:46]} 24. Qxh5 {[%clk 0:02:22]}  g6 {[%clk 0:00:41]} 25. Qe2 {[%clk 0:02:20]}  Kb7 {[%clk 0:00:39]} 26. c3 {[%clk 0:02:17]}  Bc5 {[%clk 0:00:36]} 27. Kc2 {[%clk 0:02:17]}  e5 {[%clk 0:00:35]} 28. Be3 {[%clk 0:02:12]}  Bf8 {[%clk 0:00:29]} 29. Rf1 {[%clk 0:02:13]}  R8d7 {[%clk 0:00:29]} 30. b4 {[%clk 0:02:13]}  a5 {[%clk 0:00:28]} 31. a3 {[%clk 0:02:13]}  a4 {[%clk 0:00:28]} 32. h5 {[%clk 0:02:10]}  gxh5 {[%clk 0:00:25]} 33. g6 {[%clk 0:02:10]} 1-0


[Site "https://www.chess.com"]

[Event "Titled Tuesday Blitz February 21 Early 2023"]
[White "Jakubowski, Krzysztof"]
[Black "Ivic, Velimir"]
[WhiteFideId "1112848"]
[BlackFideId "950122"]
[WhiteElo "2486"]
[BlackElo "2595"]
[Result "1-0"]
[Round "06"]
[TimeControl "180+2"]
[Date "2023.02.21"]
[WhiteClock "0:00:07"]
[BlackClock "0:00:01"]

1. e4 {[%clk 0:03:00]}  c5 {[%clk 0:02:59]} 2. Nf3 {[%clk 0:02:59]}  d6 {[%clk 0:02:59]} 3. d4 {[%clk 0:02:59]}  cxd4 {[%clk 0:03:00]} 4. Nxd4 {[%clk 0:02:59]}  Nf6 {[%clk 0:03:01]} 5. Nc3 {[%clk 0:02:57]}  a6 {[%clk 0:03:02]} 6. Be3 {[%clk 0:02:56]}  e6 {[%clk 0:02:59]} 7. Be2 {[%clk 0:02:44]}  Be7 {[%clk 0:02:58]} 8. a3 {[%clk 0:02:41]}  Qc7 {[%clk 0:02:57]} 9. g4 {[%clk 0:02:38]}  h6 {[%clk 0:02:57]} 10. Qd2 {[%clk 0:02:36]}  Nc6 {[%clk 0:02:54]} 11. f4 {[%clk 0:02:26]}  Nxd4 {[%clk 0:02:45]} 12. Bxd4 {[%clk 0:02:25]}  e5 {[%clk 0:02:46]} 13. Be3 {[%clk 0:02:24]}  Bxg4 {[%clk 0:02:35]} 14. Bxg4 {[%clk 0:02:07]}  Nxg4 {[%clk 0:02:35]} 15. O-O-O {[%clk 0:01:28]}  Nxe3 {[%clk 0:02:30]} 16. Qxe3 {[%clk 0:01:28]}  exf4 {[%clk 0:02:30]} 17. Nd5 {[%clk 0:01:26]}  Qxc2+ {[%clk 0:01:38]} 18. Kxc2 {[%clk 0:01:24]}  fxe3 {[%clk 0:01:39]} 19. Nc7+ {[%clk 0:01:19]}  Kd7 {[%clk 0:01:39]} 20. Nxa8 {[%clk 0:01:19]}  Rxa8 {[%clk 0:01:40]} 21. Kd3 {[%clk 0:01:18]}  Bf6 {[%clk 0:01:39]} 22. b3 {[%clk 0:01:15]}  Be5 {[%clk 0:01:22]} 23. h4 {[%clk 0:01:05]}  Rc8 {[%clk 0:01:17]} 24. Rc1 {[%clk 0:01:04]}  Rxc1 {[%clk 0:01:16]} 25. Rxc1 {[%clk 0:01:04]}  g5 {[%clk 0:01:00]} 26. h5 {[%clk 0:01:00]}  Bf4 {[%clk 0:00:57]} 27. Ke2 {[%clk 0:00:59]}  d5 {[%clk 0:00:38]} 28. exd5 {[%clk 0:00:56]}  f5 {[%clk 0:00:38]} 29. a4 {[%clk 0:00:37]}  Kd6 {[%clk 0:00:28]} 30. Rd1 {[%clk 0:00:36]}  g4 {[%clk 0:00:24]} 31. Rf1 {[%clk 0:00:28]}  g3 {[%clk 0:00:23]} 32. Kf3 {[%clk 0:00:28]}  Bg5 {[%clk 0:00:12]} 33. Kxg3 {[%clk 0:00:22]}  Kxd5 {[%clk 0:00:10]} 34. Kf3 {[%clk 0:00:19]}  Kd4 {[%clk 0:00:08]} 35. Rd1+ {[%clk 0:00:17]}  Kc3 {[%clk 0:00:08]} 36. Rd7 {[%clk 0:00:18]}  b5 {[%clk 0:00:09]} 37. a5 {[%clk 0:00:15]}  Kb4 {[%clk 0:00:09]} 38. Rd5 {[%clk 0:00:08]}  Kxa5 {[%clk 0:00:06]} 39. Rxf5 {[%clk 0:00:09]}  Be7 {[%clk 0:00:02]} 40. Re5 {[%clk 0:00:08]}  Bb4 {[%clk 0:00:01]} 41. Re6 {[%clk 0:00:07]} 1-0


[Site "https://www.chess.com"]

[Event "Titled Tuesday Blitz February 21 Early 2023"]
[White "Budisavljevic, Luka"]
[Black "Rakhmanov, Aleksandr"]
[WhiteFideId "960047"]
[BlackFideId "4173708"]
[WhiteElo "2488"]
[BlackElo "2632"]
[Result "0-1"]
[Round "06"]
[TimeControl "180+2"]
[Date "2023.02.21"]
[WhiteClock "0:00:28"]
[BlackClock "0:00:09"]

1. d4 {[%clk 0:03:00]}  Nf6 {[%clk 0:03:00]} 2. Nf3 {[%clk 0:02:53]}  g6 {[%clk 0:02:59]} 3. Bf4 {[%clk 0:02:54]}  Bg7 {[%clk 0:02:58]} 4. e3 {[%clk 0:02:54]}  d5 {[%clk 0:02:59]} 5. Be2 {[%clk 0:02:49]}  c5 {[%clk 0:02:58]} 6. c3 {[%clk 0:02:49]}  Nbd7 {[%clk 0:02:59]} 7. h3 {[%clk 0:02:48]}  O-O {[%clk 0:02:59]} 8. Nbd2 {[%clk 0:02:48]}  b6 {[%clk 0:03:00]} 9. a4 {[%clk 0:02:47]}  a6 {[%clk 0:02:58]} 10. O-O {[%clk 0:02:47]}  Bb7 {[%clk 0:02:59]} 11. Ne5 {[%clk 0:02:47]}  Nxe5 {[%clk 0:02:53]} 12. Bxe5 {[%clk 0:02:48]}  e6 {[%clk 0:02:53]} 13. Bf3 {[%clk 0:02:40]}  Qe7 {[%clk 0:02:49]} 14. Qb3 {[%clk 0:02:40]}  Nd7 {[%clk 0:02:43]} 15. Bxg7 {[%clk 0:02:41]}  Kxg7 {[%clk 0:02:43]} 16. Qa3 {[%clk 0:02:35]}  Rfe8 {[%clk 0:02:41]} 17. c4 {[%clk 0:02:23]}  cxd4 {[%clk 0:02:37]} 18. exd4 {[%clk 0:02:17]}  Qf6 {[%clk 0:02:29]} 19. cxd5 {[%clk 0:02:12]}  exd5 {[%clk 0:02:21]} 20. Rfe1 {[%clk 0:02:10]}  Qxd4 {[%clk 0:02:11]} 21. Qd6 {[%clk 0:01:45]}  Ne5 {[%clk 0:01:38]} 22. Red1 {[%clk 0:01:29]}  Rac8 {[%clk 0:00:59]} 23. Be2 {[%clk 0:01:21]}  Qc5 {[%clk 0:00:55]} 24. Qxc5 {[%clk 0:01:15]}  bxc5 {[%clk 0:00:54]} 25. Nb3 {[%clk 0:01:16]}  Re6 {[%clk 0:00:36]} 26. Na5 {[%clk 0:01:13]}  Ba8 {[%clk 0:00:35]} 27. Rac1 {[%clk 0:01:04]}  Rb6 {[%clk 0:00:35]} 28. Rd2 {[%clk 0:00:52]}  h5 {[%clk 0:00:33]} 29. Rdc2 {[%clk 0:00:49]}  c4 {[%clk 0:00:27]} 30. b3 {[%clk 0:00:46]}  Rc5 {[%clk 0:00:24]} 31. f4 {[%clk 0:00:41]}  Rxa5 {[%clk 0:00:19]} 32. fxe5 {[%clk 0:00:41]}  cxb3 {[%clk 0:00:18]} 33. Rb2 {[%clk 0:00:41]}  Rxa4 {[%clk 0:00:18]} 34. Rcb1 {[%clk 0:00:42]}  Rab4 {[%clk 0:00:15]} 35. Bd1 {[%clk 0:00:43]}  f6 {[%clk 0:00:12]} 36. exf6+ {[%clk 0:00:43]}  Kxf6 {[%clk 0:00:13]} 37. Ra1 {[%clk 0:00:38]}  Bc6 {[%clk 0:00:11]} 38. Kf2 {[%clk 0:00:37]}  h4 {[%clk 0:00:11]} 39. Ke3 {[%clk 0:00:37]}  g5 {[%clk 0:00:11]} 40. Kd3 {[%clk 0:00:37]}  Ke5 {[%clk 0:00:12]} 41. Bf3 {[%clk 0:00:35]}  Rd4+ {[%clk 0:00:11]} 42. Kc3 {[%clk 0:00:35]}  Rc4+ {[%clk 0:00:12]} 43. Kd3 {[%clk 0:00:35]}  Ba4 {[%clk 0:00:11]} 44. Re1+ {[%clk 0:00:33]}  Kd6 {[%clk 0:00:12]} 45. Rd1 {[%clk 0:00:29]}  Rc2 {[%clk 0:00:09]} 46. Rbb1 {[%clk 0:00:27]}  b2 {[%clk 0:00:09]} 47. Ke3 {[%clk 0:00:28]}  Rb3+ {[%clk 0:00:09]} 48. Kd4 {[%clk 0:00:28]}  Rc4# {[%clk 0:00:09]} 0-1


[Site "https://www.chess.com"]

[Event "Titled Tuesday Blitz February 21 Early 2023"]
[White "Stribuk, Artiom"]
[Black "Aggelis, Nikolaos"]
[WhiteFideId "13515659"]
[BlackFideId "4213220"]
[WhiteElo "2378"]
[BlackElo "2270"]
[Result "1-0"]
[Round "06"]
[TimeControl "180+2"]
[Date "2023.02.21"]
[WhiteClock "0:00:21"]
[BlackClock "0:00:13"]

1. d4 {[%clk 0:02:40]}  Nf6 {[%clk 0:02:59]} 2. Nf3 {[%clk 0:02:40]}  g6 {[%clk 0:02:59]} 3. c4 {[%clk 0:02:39]}  Bg7 {[%clk 0:02:59]} 4. g3 {[%clk 0:02:39]}  O-O {[%clk 0:02:58]} 5. Bg2 {[%clk 0:02:39]}  d5 {[%clk 0:02:58]} 6. cxd5 {[%clk 0:02:38]}  Nxd5 {[%clk 0:02:59]} 7. O-O {[%clk 0:02:39]}  Nc6 {[%clk 0:02:59]} 8. Nc3 {[%clk 0:02:39]}  e5 {[%clk 0:02:58]} 9. Bg5 {[%clk 0:02:39]}  f6 {[%clk 0:02:56]} 10. Bc1 {[%clk 0:02:38]}  Nxc3 {[%clk 0:02:56]} 11. bxc3 {[%clk 0:02:39]}  e4 {[%clk 0:02:56]} 12. Nd2 {[%clk 0:02:39]}  f5 {[%clk 0:02:54]} 13. Ba3 {[%clk 0:02:38]}  Rf7 {[%clk 0:02:49]} 14. e3 {[%clk 0:02:38]}  Bf8 {[%clk 0:02:49]} 15. Bxf8 {[%clk 0:02:36]}  Qxf8 {[%clk 0:02:49]} 16. f3 {[%clk 0:02:37]}  exf3 {[%clk 0:02:46]} 17. Qxf3 {[%clk 0:02:36]}  Bd7 {[%clk 0:02:44]} 18. e4 {[%clk 0:02:34]}  fxe4 {[%clk 0:02:42]} 19. Qxf7+ {[%clk 0:02:33]}  Qxf7 {[%clk 0:02:42]} 20. Rxf7 {[%clk 0:02:34]}  Kxf7 {[%clk 0:02:42]} 21. Nxe4 {[%clk 0:02:35]}  Re8 {[%clk 0:02:37]} 22. Nc5 {[%clk 0:02:01]}  Bc8 {[%clk 0:02:17]} 23. Rb1 {[%clk 0:02:01]}  Na5 {[%clk 0:02:00]} 24. Nxb7 {[%clk 0:01:45]}  Bf5 {[%clk 0:01:13]} 25. Rb5 {[%clk 0:01:15]}  Nc4 {[%clk 0:00:58]} 26. Rc5 {[%clk 0:00:50]}  Ne3 {[%clk 0:00:36]} 27. Rxc7+ {[%clk 0:00:49]}  Kg8 {[%clk 0:00:36]} 28. Nd6 {[%clk 0:00:45]}  Rb8 {[%clk 0:00:30]} 29. Rb7 {[%clk 0:00:32]}  Rd8 {[%clk 0:00:25]} 30. Nxf5 {[%clk 0:00:31]}  gxf5 {[%clk 0:00:26]} 31. Re7 {[%clk 0:00:29]}  Nd1 {[%clk 0:00:25]} 32. Rc7 {[%clk 0:00:25]}  Rb8 {[%clk 0:00:22]} 33. Bd5+ {[%clk 0:00:25]}  Kh8 {[%clk 0:00:21]} 34. Bb3 {[%clk 0:00:26]}  Ne3 {[%clk 0:00:20]} 35. d5 {[%clk 0:00:25]}  Rd8 {[%clk 0:00:20]} 36. c4 {[%clk 0:00:23]}  a5 {[%clk 0:00:19]} 37. h3 {[%clk 0:00:20]}  h5 {[%clk 0:00:19]} 38. Kf2 {[%clk 0:00:20]}  f4 {[%clk 0:00:17]} 39. gxf4 {[%clk 0:00:20]}  Nf5 {[%clk 0:00:18]} 40. c5 {[%clk 0:00:21]}  a4 {[%clk 0:00:15]} 41. Bc4 {[%clk 0:00:21]}  Rb8 {[%clk 0:00:13]} 42. d6 {[%clk 0:00:21]}  Rb4 {[%clk 0:00:13]} 43. d7 {[%clk 0:00:21]} 1-0


[Site "https://www.chess.com"]